{"text_format":"1","workbook":"xlsx","n_sheets":3,"sheets":["échantillon","Courbe granulométrique","Adresse"],"not_rendered":{"charts":1,"images":4,"macros":1,"external_links":0,"defined_names":4,"comments":0,"pivot_tables":0},"unopened":[],"bounds":{"document_bytes":16777216,"sheet_cells":100000,"rows_first":2000,"rows_last":500,"rows_between":2000,"halvings":0,"cell_chars":16384,"cell_head_chars":4096},"cells_cut":0,"cells_raw":0,"read":"whole","date_system":"1900"}

{"sheet":"échantillon","index":0,"n_rows":75,"n_cols":5,"rows_kept":75,"cut":false,"hidden":false,"merged":[[74,0,74,4],[66,0,66,4],[6,0,7,4],[52,0,53,4],[8,1,11,3],[41,0,47,4],[57,2,57,4],[58,2,58,4],[56,2,56,4],[55,2,55,4],[65,0,65,4],[63,0,63,4],[64,0,64,4],[62,0,62,4],[19,1,19,3],[61,0,61,4],[17,1,17,3],[15,1,15,3],[0,0,0,4],[1,0,1,4],[2,0,2,4],[3,0,3,4],[4,0,4,4],[22,0,22,4]]}
["SERVICE PUBLIC DE WALLONIE"]
["Direction Générale Routes et Bâtiments"]
["Département des Expertises Techniques"]
["Direction de la Recherche et du Contrôle Routier"]
["Rue de l'industrie 27 - 1400 Nivelles    Tél 067/28 33 00 - Fax 067/21 64 01"]
[]
["Chapitre 3 : ESSAIS SUR SABLES ET GRAVILLONS "]
[]
["LABORATOIRE* :","_"]
[]
[]
["*menu déroulant"]
[]
["Date d'essai :                du",null,"au   "]
[]
["Référence de la demande :"]
[]
["Identification échantillon :"]
[]
["Nature du Produit :"]
[]
[]
["Granularité (NBN EN 933-1)"]
[]
["Masse sèche de l'échantillon avant lavage (g) :"]
["Masse sèche de l'échantillon après lavage (g) :"]
["Masse sèche du filler de l'échantillon (g) :"]
[]
[null,"Tamis (mm)","Masse cum (g)","Refus cum (%)","Passant cum (%)"]
[]
[]
[]
[]
[]
[]
[]
[]
[]
[]
[]
["Commentaires:"]
[]
[]
[]
[]
[]
[]
[]
[]
[]
[]
[]
["Fichier à renvoyer à l'adresse : resultats.laboratoire.dgo166@spw.wallonie.be"]
[]
[]
["Adresse(s) complémentaire(s) :"]
[]
[]
[]
["procédure d'envoi :"]
[]
["1) Activer les Macros"]
["2) Vérifier que toutes les données demandées soient complétées"]
["3) Compléter le(s) adresse(s) e-mail complémentaire(s) "]
["3-4) Cliquer sur \"Valider et envoyer\" puis \"Confirmer\". "]
["5) Accepter ou refuser l'envoi du classeur sur la fenêtre d'envoi"]
["Une copie bloquée du fichier est envoyée aux adresses supra mentionnée."]
[]
[]
[]
[]
[]
[]
["Remarques:"]
["* Le bouton \"Encoder un nouveau rapport\" efface toutes les données introduites"]

{"sheet":"Courbe granulométrique","index":1,"n_rows":36,"n_cols":12,"rows_kept":36,"cut":false,"hidden":false,"merged":[[0,0,0,14],[1,0,1,14],[2,0,2,9],[3,1,3,7]]}
["SERVICE PUBLIC DE WALLONIE"]
["DIRECTION DE LA RECHERCHE ET DU CONTRÔLE ROUTIER"]
[]
[]
[]
[]
[]
[]
[]
[]
[]
[]
[]
[]
[]
[]
[]
[]
[]
[]
[]
[]
[]
[]
[]
[]
[]
[]
[]
[]
[]
[]
[null,null,null,"Granulométrie (refus cumulés sur tamis en %)"]
["éch n°",{"$f":"IF(échantillon!B18=\"\",\"\",échantillon!B18)","v":""}]
[null,"Tamis (mm)",{"$f":"échantillon!B30","v":0},{"$f":"échantillon!B31","v":0},{"$f":"échantillon!B32","v":0},{"$f":"échantillon!B33","v":0},{"$f":"échantillon!B34","v":0},{"$f":"échantillon!B35","v":0},{"$f":"échantillon!B36","v":0},{"$f":"échantillon!B37","v":0},{"$f":"échantillon!B38","v":0},{"$f":"échantillon!B39","v":0}]
[null,"Passant cum (%)",{"$f":"échantillon!E30","v":0},{"$f":"échantillon!E31","v":0},{"$f":"échantillon!E32","v":0},{"$f":"échantillon!E33","v":0},{"$f":"échantillon!E34","v":0},{"$f":"échantillon!E35","v":0},{"$f":"échantillon!E36","v":0},{"$f":"échantillon!E37","v":0},{"$f":"échantillon!E38","v":0},{"$f":"échantillon!E39","v":0}]

{"sheet":"Adresse","index":2,"n_rows":9,"n_cols":3,"rows_kept":9,"cut":false,"hidden":true,"merged":[]}
["Adresse:"]
["Type de marché:","Laboratoires:"]
["_","_"]
["STRUCTURANT","LABOMOSAN SA\nChemin du fond des coupes, 6\n5150 Floreffe\nTél: 081/44.61.16 \ninfo@labomosan.be\n","ok"]
["NON-STRUCTURANT","ABC Experts SA\nRue de l'Abbaye 92\n 4040 Herstal\nTél : 04 240 05 36  -  Fax : 04/246.91.41 \ninfo@abcexperts.be","ok"]
[null,"INISMA asbl\nAvenue Gouverneur Cornez, 4\n7000 Mons\nTél: 065/34.80.05\ninfo@bcrc.be"]
[null,"INISMA Bertrix asbl\nRue de la Bruyère, 31\n6880 Bertix\nTél: 061 /41.29.47\ninfo@bcrc.be","ok"]
[null,"Association momentanée INISMA asbl - LABOTOUR S.A.\nAvenue Gouverneur Cornez, 4\n7000 Mons\nTél: 065/40.34.34 - Fax :065/34.80.05\ninfo@bcrc.be","ok"]
[null,"Association momentanée INISMA asbl - LABOMOSAN S.A.\nAvenue Gouverneur Cornez, 4\n7000 Mons\nTél: 065/40.34.34 - Fax :065/34.80.05\ninfo@bcrc.be","ok"]